Cogmind - Beta 13 @@@ ROGUE MODE // 2024.06.02 @ 13:15:05 Player: Sionnis Result: Destroyed by 5Z-VVY(R) with Subdweller Machine Gun Performance ------------- Evolutions (0) 0 Regions Visited (3) 600 Robots Destroyed (25) 125 Value Destroyed (625) 625 Prototype IDs (2) 40 Alien Tech Used (0) 0 Bonus (-22) -22 TOTAL SCORE: 1368 Bonus ------- Friendly Fire -22 Cogmind --------- Core Integrity 0/250 Matter 271/300 Energy 298/300 System Corruption 3% Temperature Cool (0) Movement Rolling (120) Ox1 Location -10/Subcaves Parts ------- > --- POWER (1+3) ------ Subdweller Power Source Subdweller Power Source (+) > --- PROPULSION (2) --- Subdweller Monowheel Subdweller Monowheel > --- UTILITY (2) ------ Large Storage Unit Power Bank > --- WEAPON (2) ------- Subdweller Laser Subdweller Machine Gun > --- INVENTORY (15) --- Wheel Wheel Experimental Sensor Array EM Pulse Gun EM Pulse Gun EM Pulse Gun EM Pulse Gun Shotgun Subdweller Machine Gun Heavy Battle Rifle Heavy Battle Rifle Rocket Launcher Subdweller Shrapnel Launcher Makeshift Sword Peak State ------------ > --- POWER ------------ Subdweller Power Source Subdweller Power Source > --- PROPULSION ------- Subdweller Monowheel Subdweller Monowheel > --- UTILITY ---------- Large Storage Unit Power Bank > --- WEAPON ----------- Subdweller Laser Subdweller Machine Gun > --- INVENTORY -------- Wheel Wheel Subdweller Monowheel Experimental Sensor Array EM Pulse Gun EM Pulse Gun EM Pulse Gun EM Pulse Gun Shotgun Subdweller Machine Gun Heavy Battle Rifle Heavy Battle Rifle Rocket Launcher Subdweller Shrapnel Launcher Makeshift Sword [Rating: 25] Favorites ----------- Power Subdweller Power Source Engine Subdweller Power Source Propulsion Wheel Wheel Wheel Utility Large Storage Unit Device Power Bank Storage Large Storage Unit Processor Targeting Computer Weapon Shotgun Energy Gun Subdweller Laser Ballistic Gun Shotgun Build | -11 -10 -10 -10 ------- Run | Yrd Mat Min Sub Slots Evolved . | . . . . Power . | . . . . Propulsion . | . . . . Utility . | . . . . Weapon . | . . . . Parts Attached 36 | 3 4 9 20 Power 4 | 1 . . 3 Engine 4 | 1 . . 3 Core . | . . . . Reactor . | . . . . Propulsion 13 | 2 . 3 8 Treads . | . . . . Leg . | . . . . Wheel 13 | 2 . 3 8 Hover . | . . . . Flight . | . . . . Utility 4 | . 2 1 1 Device 2 | . . 1 1 Storage 1 | . 1 . . Processor 1 | . 1 . . Hackware . | . . . . Protection . | . . . . Artifact . | . . . . Weapon 15 | . 2 5 8 Energy Gun 3 | . . . 3 Energy Cannon . | . . . . Ballistic Gun 12 | . 2 5 5 Ballistic Cannon . | . . . . Launcher . | . . . . Special Weapon . | . . . . Impact Weapon . | . . . . Slashing Weapon . | . . . . Piercing Weapon . | . . . . Special Melee Weapon . | . . . . Unidentified Prototypes 2 | . . 1 1 Parts Lost 12 | . . 9 3 Power 1 | . . 1 . Propulsion 5 | . . 3 2 Utility 1 | . . 1 . Weapon 5 | . . 4 1 Highest Loss Streak 4 | . . 4 3 To Critical Strikes . | . . . . Average Slot Usage (%) 74 | . 95 64 72 Engine 7 | . 14 1 8 Wheel 21 | . 28 17 20 Device 6 | . . 5 10 Storage 12 | . 11 14 10 Processor 2 | . 12 . . Energy Gun 3 | . . . 7 Ballistic Gun 20 | . 26 24 14 Naked Turns . | . . . . Heaviest Build 41 | 3 29 29 41 Greatest Support 40 | 20 20 20 40 Greatest Overweight (x) 8 | . 1 8 3 Average Overweight (x) 1 | . . 1 . Largest Inventory Capacity 15 | 5 15 15 15 Average Capacity 14 | 5 13 15 15 Most Carried 15 | . 14 14 15 Average Carried 9 | . 5 9 12 Final Capacity 15 | 5 15 15 15 Final Carried 14 | . 14 7 14 Class Distribution -------------------- 84% | Mutant 15% | Scavenger-Mutant Dominant Class ---------------- Mutant | -10/Materials Mutant | -10/Mines Mutant | -10/Subcaves Resources | -11 -10 -10 -10 ----------- Run | Yrd Mat Min Sub Matter Collected 1073 | 134 77 494 368 Remotely . | . . . . Salvage Created 681 | . 89 248 344 Parts 49 | . 13 13 23 Haulers Intercepted . | . . . . Recyclers Shooed . | . . . . Parts Field Recycled . | . . . . Retrieved Matter . | . . . . Parts Self-Destructed 4 | . . . 4 Prevented . | . . . . Kills | -11 -10 -10 -10 ------- Run | Yrd Mat Min Sub Combat Hostiles Destroyed 37 | . 6 23 8 Guns 37 | . 6 23 8 Classes Destroyed 6 | . 2 3 1 Watcher 2 | . 2 . . Swarmer 12 | . 6 6 . Grunt 1 | . . 1 . Demolisher 2 | . . 2 . Subdweller 8 | . . . 8 Assembled 14 | . . 14 . Best Kill Streak 8 | . 4 8 3 Combat Bots Only 8 | . 3 8 3 Max Kills in Single Turn 2 | . 1 2 1 Gunslinging 1 | . . 1 . Exploded . | . . . . Melee . | . . . . Uniques/NPCs Destroyed . | . . . . Combat | -11 -10 -10 -10 -------- Run | Yrd Mat Min Sub Hostile Shots Fired 114 | . 8 79 27 Missed 29 | . 4 17 8 Damage Taken 1488 | . 36 989 463 Core 268 | . 18 94 156 Absorbed by Shields . | . . . . Core Remaining (%) 100 | 100 . . . Volleys Fired 82 | . 14 46 22 Largest 2 | . 2 2 2 Hottest 90 | . 46 46 90 Shots Fired 162 | . 28 90 44 Gun 162 | . 28 90 44 Cannon . | . . . . Launcher . | . . . . Special . | . . . . Kinetic 145 | . 28 90 27 Thermal 17 | . . . 17 Explosive . | . . . . Electromagnetic . | . . . . Robot Hit Streak 7 | . 4 7 7 Robot Miss Streak 10 | . 4 10 2 Penetration Max . | . . . . Secondary Targets 5 | . . 4 1 Max Gunslinging Chain 1 | . . 1 1 Shots Hit Robots 110 | . 19 64 27 Core Hits 69 | . 11 42 16 Critical Kills . | . . . . Critical Parts Destroyed . | . . . . Critical Strikes . | . . . . Melee Attacks . | . . . . Impact . | . . . . Slashing . | . . . . Piercing . | . . . . Sneak Attacks . | . . . . Combat Hostiles . | . . . . Follow-up Attacks . | . . . . Damage Inflicted 1743 | . 257 958 528 Guns 1717 | . 257 932 528 Cannons . | . . . . Explosions . | . . . . Melee . | . . . . Ramming 26 | . . 26 . Kinetic 1533 | . 257 932 344 Thermal 184 | . . . 184 Explosive . | . . . . Electromagnetic . | . . . . Impact . | . . . . Slashing . | . . . . Piercing . | . . . . Highest Corruption 3 | . . 3 3 Average Corruption 2 | . . 2 3 Corruption Purged . | . . . . Corruption Blocked . | . . . . Effects 32 | . . 16 16 Message Errors 8 | . . 7 1 Matter Fused 7 | . . 2 5 Heat Flow Errors 2 | . . 1 1 Energy Discharges 5 | . . . 5 Parts Rejected 1 | . . 1 . Data Loss (minor) 6 | . . 3 3 Misfires 1 | . . 1 . Alerts 1 | . . . 1 Weapon Failures 1 | . . 1 . Overload Shots . | . . . . Overflow Damage . | . . . . Projectiles . | . . . . Explosions . | . . . . Melee . | . . . . Knockbacks . | . . . . Impact . | . . . . Kinetic . | . . . . Secondary . | . . . . Self-Inflicted Damage 13 | . . 13 . Shots . | . . . . Rammed 5 | . . 5 . Targets Rammed 5 | . . 5 . Kicked . | . . . . Crushed . | . . . . Highest Temperature 238 | . . 238 187 Average Temperature 51 | . . 46 85 Received Heat Transfer 458 | . . 338 120 Siege Activations . | . . . . Robots Corrupted . | . . . . Combat Hostiles . | . . . . Parts Fried . | . . . . Impact Corruptions . | . . . . Robots Melted . | . . . . Combat Hostiles . | . . . . Parts Melted . | . . . . Heat Transferred 225 | . . . 225 Parts Sabotaged . | . . . . Parts Stolen . | . . . . Parts Stripped . | . . . . Power Chain Reactions . | . . . . Alert | -11 -10 -10 -10 ------- Run | Yrd Mat Min Sub Peak Influence 156 | . 156 147 . Initial 27 | . . 27 . Average 63 | . 73 59 . Maximum Alert Level . | . . . . Low Security (%) 100 | 100 100 100 . Level 1 . | . . . . Level 2 . | . . . . Level 3 . | . . . . Level 4 . | . . . . Level 5 . | . . . . High Security . | . . . . Max Security . | . . . . Squads Dispatched 1 | . 1 . . Investigation . | . . . . Extermination . | . . . . Reinforcement 1 | . 1 . . Assault . | . . . . Garrison . | . . . . Intercept . | . . . . Searches Triggered . | . . . . Construction Impeded . | . . . . Haulers Reinforced . | . . . . Active Scanning Responses . | . . . . Cargo Convoy Interrupts . | . . . . Stealth | -11 -10 -10 -10 --------- Run | Yrd Mat Min Sub Distress Signals 1 | . 1 . . Communications Jammed . | . . . . Distress Signals . | . . . . Times Spotted 47 | . 12 24 11 Peak Tracking Total 14 | . 3 14 3 Tactical Retreats 1 | . . 1 . Traps | -11 -10 -10 -10 ------- Run | Yrd Mat Min Sub Traps Triggered . | . . . . Indirectly . | . . . . Trap Hack Attempts . | . . . . Triggered . | . . . . Disarmed . | . . . . Reprogrammed . | . . . . Reused . | . . . . Traps Extracted . | . . . . Installed . | . . . . Triggered . | . . . . Machines | -11 -10 -10 -10 ---------- Run | Yrd Mat Min Sub Machines Disabled . | . . . . Max in Single Turn . | . . . . Machines Repaired . | . . . . Machines Dismantled . | . . . . Machines Sabotaged . | . . . . Overloaded Fab Kills . | . . . . Hacking | -11 -10 -10 -10 --------- Run | Yrd Mat Min Sub Machines Accessed 2 | . 2 . . Terminals 2 | . 2 . . Fabricators . | . . . . Repair Stations . | . . . . Recycling Units . | . . . . Scanalyzers . | . . . . Garrison Access . | . . . . Total Hacks 6 | . 6 . . Successful 2 | . 2 . . Failed 4 | . 4 . . Catastrophic . | . . . . Database Lockouts . | . . . . Manual 6 | . 6 . . Terminals 6 | . 6 . . Fabricators . | . . . . Repair Stations . | . . . . Recycling Units . | . . . . Scanalyzers . | . . . . Garrison Access . | . . . . Terminal Hacks 2 | . 2 . . Robot Analysis 2 | . 2 . . Fabricator Hacks . | . . . . Repair Station Hacks . | . . . . Recycling Unit Hacks . | . . . . Scanalyzer . | . . . . Garrison Access Hacks . | . . . . Unauthorized Hacks . | . . . . Terminals . | . . . . Fabricators . | . . . . Repair Stations . | . . . . Recycling Units . | . . . . Scanalyzers . | . . . . Garrison Access . | . . . . Data Cores Recovered . | . . . . Used . | . . . . Hacking Detections 2 | . 2 . . Full Trace Events 1 | . 1 . . Feedback Events . | . . . . Feedback Blocked . | . . . . Robot Schematics Acquired . | . . . . Robots Built . | . . . . Authchips . | . . . . Time . | . . . . Total Robot Build Rating . | . . . . Part Schematics Acquired . | . . . . Parts Built . | . . . . Authchips . | . . . . Time . | . . . . Total Part Build Rating . | . . . . Parts Repaired . | . . . . Time . | . . . . Parts Recycled . | . . . . Recycled Matter . | . . . . Retrieved Matter . | . . . . Retrieved Components . | . . . . Parts Scanalyzed . | . . . . Part Schematics Acquired . | . . . . Parts Damaged . | . . . . Bothacking | -11 -10 -10 -10 ------------ Run | Yrd Mat Min Sub Used RIF Installer . | . . . . Robots Hacked . | . . . . Non-combat . | . . . . Combat . | . . . . Robot Hacks Applied . | . . . . Relay Couplers Released . | . . . . Fabnet Peak Effective % . | . . . . Robots Rewired . | . . . . Allies Hacked . | . . . . Hacks Repelled . | . . . . Allies | -11 -10 -10 -10 -------- Run | Yrd Mat Min Sub Total Allies . | . . . . Largest Group . | . . . . Highest-Rated Group . | . . . . Highest-Rated Ally . | . . . . Total Orders . | . . . . Ally Attacks . | . . . . Total Damage . | . . . . Kills . | . . . . Allies Corrupted . | . . . . Allies Melted . | . . . . Intel | -11 -10 -10 -10 ------- Run | Yrd Mat Min Sub Robot Analysis Total 2 | . 2 . . Derelict Logs Recovered 2 | . . 2 . Drone Launches . | . . . . Drone Recoveries . | . . . . Exploration | -11 -10 -10 -10 ------------- Run | Yrd Mat Min Sub Turns Passed 2503 | 20 526 870 1087 Spaces Moved 1797 | 21 364 533 879 Core 56 | 4 . 52 . Treads . | . . . . Legs . | . . . . Wheels 1741 | 17 364 481 879 Hover . | . . . . Flight . | . . . . Fastest Speed 50 | 50 80 95 95 Average Speed 112 | 74 91 131 110 Slowest Speed 450 | 80 95 450 130 Overloaded Moves . | . . . . Propulsion Burnouts . | . . . . Robots Hopped . | . . . . Cave-ins Triggered . | . . . . Exploration Rate (%) 48 | 3 47 97 45 Regions Visited 3 Branch Regions 2 Pre-discovered Areas 1 | . . 1 . Known Exits Taken . | . . . . Unknown Exits Taken 3 | 1 1 1 . Scrap Searched 5 | . . 1 4 Spaces Dug . | . . . . Terrain Destroyed . | . . . . Melee . | . . . . Projectile . | . . . . AOE . | . . . . Terrain Rammed . | . . . . Walls Destroyed . | . . . . Machines Disabled . | . . . . Actions | -11 -10 -10 -10 --------- Run | Yrd Mat Min Sub Total 2114 | 23 526 610 955 Wait 156 | . 131 17 8 Move 1794 | 20 363 532 879 Hop . | . . . . Pick Up 29 | . 14 1 14 Fast Attach 15 | 3 4 1 7 Attach 13 | . . 8 5 Detach 1 | . . . 1 Swap 8 | . . . 8 Drop 11 | . . . 11 Fire 82 | . 14 46 22 Melee . | . . . . Ram 5 | . . 5 . Kick . | . . . . Crush . | . . . . Escape Stasis . | . . . . Rewire . | . . . . Trap . | . . . . Miscellaneous . | . . . . Route ------- -11/Scrapyard -10/Materials -10/Mines (discovered 3 exits: [*Mat x2] / [*Sub]) -10/Subcaves History --------- Turn | Location | Event 8 | -11/Scrapyard | Discovered new exit (range 15) 21 | -11/Scrapyard | Entered Materials 144 | -10/Materials | Discovered new exit (range 9) 315 | -10/Materials | Build established: Mutant 547 | -10/Materials | Entered Mines 548 | -10/Mines | Assembled infested the area 553 | -10/Mines | Assisted by a Guerilla fighting off Assembled 624 | -10/Mines | Met a Derelict bent on vengeance 629 | -10/Mines | Destroyed 8 combat bots 668 | -10/Mines | Lost 4 parts (1p2n1w) 889 | -10/Mines | Learned 2 Materials zone layouts 1029 | -10/Mines | Learned Materials terminal intel 1039 | -10/Mines | Received a Rocket Launcher from a helpful Derelict 1076 | -10/Mines | Found a damaged Exp. Sensor Array with a note attached 1078 | -10/Mines | Found Prototype Device 1078 | -10/Mines | Identified Exp. Sensor Array 1122 | -10/Mines | Discovered new exit (range 14) 1149 | -10/Mines | Learned location of Storage (-9) 1194 | -10/Mines | Discovered new exit (range 16) 1330 | -10/Mines | Discovered new exit (range 12) 1417 | -10/Mines | Entered Subcaves 1637 | -10/Subcaves | A Subdweller sparked back to life 1637 | -10/Subcaves | A Subdweller sparked back to life 1637 | -10/Subcaves | A Subdweller sparked back to life 1646 | -10/Subcaves | Core integrity fell below 50% 1685 | -10/Subcaves | Found Prototype Device 1685 | -10/Subcaves | Identified Power Bank 1686 | -10/Subcaves | Attached Power Bank, gained temporary slots: Power x3 1690 | -10/Subcaves | Lost 3 parts (2n1w) 2101 | -10/Subcaves | Core integrity fell below 20% 2426 | -10/Subcaves | Build established: Scavenger-Mutant 2504 | -10/Subcaves | Destroyed by 5Z-VVY(R) with Subdweller Machine Gun Last Messages --------------- 02286_ Dropped Broken Sub. Monowheel. 02286_ Acquired Sub. Monowheel. 02288_ Acquired 10 matter. 02290_ Dropped Sub. Laser. 02291_ Acquired 10 matter. 02296_ Subatomizers dissect the Sub. Optics. 02321_ System corrupted: Heat flow error (+222). 02366_ Sub. Monowheel shoots sparks and powers down. 02367_ Dropped Broken Sub. Monowheel. 02371_ Subatomizers dissect the Sub. Laser. 02382_ Acquired Sub. Monowheel. 02384_ Subatomizers dissect the Sub. Laser. 02403_ Acquired 10 matter. 02431_ System corrupted: Matter fused (-10). 02434_ Sub. Monowheel shoots sparks and powers down. 02451_ System corrupted: Matter fused (-9). 02461_ Dropped Broken Sub. Monowheel. 02471_ System corrupted: Component data lost. Map ----- +----------------------------------------------------+ | ??# #??#### #??????????????? | | ??# ##????## [# | ####???????????? | | ?## #????# ## ### ## #???????????? | | ?# #?#### ### #??# ## ????????????? | | ?# ##?# # ## #???# #????????????? | | ?# ##?# # ### #???# #????????????? | | ?## ### # ## ##?## ### #????????????? | | ??## ### ### #????????????? | | ???### # ####### #????????????? | | ????## ## ##?????# ?# #????????????? | | ????# ### ##??????# #### ?????????????? | | ##### ### #?####### ## #?#?????????????? | | ##### ## ##??????????????? | | ##??# #??????????????? | | ##???# ## ##??????????????? | | ####????# = ### ##???????????????? | | #???????# ###?# ##????????????????? | | #???????# R##???# ##?????????????????? | | #???????## R###??# ##??? ? ???????????? | | ## &*=##????????## #??#####?? #??????????? | | ###![ ##?????????## ##### ## #????????????? | | ### ##????????## ##$??????????? | | ## =! ##??????## ?????????? | | #??????# # ??????????? | | = #####???##### ### ##??????????????? | | # ##??????## @ ###??##???????????????? | | ## #####??## #########???????????? | | ### #### ##??????????? | | #?## ## % #??????????? | | #??# ##### % ### ##??????????? | | #??## #???## #### ## ##?###???????????? | | ###?# #???## ##### #####????????????????? | | #?# #???##### ##???????????????????? | | #?### #???????## #???????????????????? | | ##????# #????????# #### #???????????????????? | | ##??????##????????## ##??#####???????????????????? | | ???????????????????##????????????????????????????? | | ?????????????????????????????????????????????????? | | ?????????????????????????????????????????????????? | | ?????????????????????????????????????????????????? | | ?????????????????????????????????????????????????? | | ?????????????????????????????????????????????????? | | ?????????????????????????????????????????????????? | | ?????????????????????????????????????????????????? | | ?????????????????????????????????????????????????? | | ?????????????????????????????????????????????????? | | ?????????????????????????????????????????????????? | | ?????????????????????????????????????????????????? | | ?????????????????????????????????????????????????? | | ?????????????????????????????????????????????????? | +----------------------------------------------------+ Best States ------------- Heat Dissipation 25 Energy Generation 25 Energy Capacity 300 Matter Stores 300 Matter Capacity 300 Sight Range 16 Robot Scan Range 20 Terrain Scan Density 10 Evasion (%) 44 Targeting Accuracy 5 Item Schematics ----------------- None Robot Schematics ------------------ None Fabricated ------------ Nothing Alien Tech Used ----------------- None Achievements -------------- None Challenges ------------ None Game ------ Seed gottagofast Manual? 1 Play Time 00:28:45 Cumulative 154.4 hours Start 2024.06.02 @ 12:17:44 End 2024.06.02 @ 13:15:05 Sessions 1 Manual Loads 0 Difficulty Rogue Special Mode None Game No. 146 Rogue 146 Adventurer 0 Explorer 0 Win Type - Total 9 Types 8/0/0/1/0/0/0/0/0 Lore% 67 Gallery% 78 Achievement% 64 Wizard Run 0 Options --------- Layout 1 ASCII 0 Keyboard 0 Movement Numpad Keybinds 0 Fullscreen 1 Font 24/Smallcaps Map View 50x35 Zoom Use 0% Tactical HUD 1 Map Filters NONE Filters NONE Steam 1 RUN: 64f0b821-7408-4c75-8803-21986c2a53d3